fUSD/lending_fUSD_20260217
["ID","MTS","AMOUNT","RATE_DAILY","PERIOD"]
[405787813,1771309840451,-3826.5506893,0.00011099,2]
[405787815,1771309840462,-3826.5506893,0.00011099,2]
[405787817,1771309840471,-3826.5506893,0.00011099,2]
[405787819,1771309840481,-788.0,0.00011213,2]
[405787821,1771309840491,-500.0,0.0001137,2]
[405787823,1771309840500,-173498.0,0.000114,2]
[405787825,1771309840511,-1000.0,0.00011521,2]
[405787827,1771309840521,-1000.0,0.00011521,2]
[405787830,1771309840537,-1000.0,0.00011521,2]
[405787832,1771309840547,-500.0,0.00011644,2]
[405787834,1771309840557,-3826.5506893,0.00011652,2]
[405787836,1771309840568,-5530.0,0.000117,3]
[405787838,1771309840577,-1151.53,0.00011779,2]
[405787840,1771309840588,-1000.0,0.00011783,2]
[405787842,1771309840597,-500.0,0.00011918,2]
[405787844,1771309840607,-1151.53,0.00011934,2]
[405787846,1771309840616,-1152.0,0.00011979,2]
[405787848,1771309840626,-4609.0,0.00011979,2]
[405787850,1771309840636,-11808.51754568,0.00012025,2]
[405787852,1771309840646,-1500.0,0.00012068,2]
[405787854,1771309840656,-1002.39964348,0.00012068,2]
[405787856,1771309840666,-1500.0,0.00012068,2]
[405787858,1771309840675,-1151.53,0.00012089,2]
[405787860,1771309840686,-5530.0,0.000121,5]
[405787862,1771309840695,-15530.24,0.00012124,2]
[405787865,1771309840705,-500.0,0.00012192,2]
[405787867,1771309840715,-1151.53,0.00012244,2]
[405787869,1771309840724,-743.81971636,0.00012273,2]
[405787871,1771309840733,-5300.13656815,0.0001229,2]
[405787873,1771309840743,-1151.53,0.00012399,2]
[405787875,1771309840752,-504.47430688,0.00012466,2]
[405787877,1771309840767,-3826.5506893,0.00012545,2]
[405787879,1771309840776,-1151.53,0.00012554,2]
[405787881,1771309840786,-368.72151799,0.00012616,2]
[405787883,1771309840796,-2000.0,0.00012616,2]
[405787885,1771309840805,-225.35,0.00012636,2]
[405787888,1771309840815,-1151.53,0.00012709,2]
[405787890,1771309840825,-7992.92,0.00012795,2]
[405787892,1771309840835,-1731.860903,0.00012826,2]
[405787894,1771309840844,-1000.0,0.00012854,2]
[405787896,1771309840854,-1151.53,0.00012864,2]
[405787898,1771309840864,-70181.97252511,0.000129,2]
[405787900,1771309840873,-691.39134889,0.00012903,2]
[405787902,1771309840883,-151.47260236,0.00012992,2]
[405787905,1771309840896,-3044.08328567,0.00012992,2]
[405787907,1771309840905,-11808.51754568,0.0001301,2]
[405787909,1771309840915,-1151.53,0.00013019,2]
[405787911,1771309840926,-1000.0,0.0001309,2]
[405787913,1771309840938,-2500.0,0.00013164,2]
[405787915,1771309840948,-1151.53,0.00013174,2]
[405787917,1771309840958,-6453.0,0.00013177,2]
[405787919,1771309840968,-1151.53,0.00013329,2]
[405787921,1771309840978,-500.0,0.00013425,2]
[405787923,1771309840987,-500.0,0.00013425,2]
[405787925,1771309840997,-3826.5506893,0.00013437,2]
[405787927,1771309841007,-502.16866536,0.0001348,2]
[405787929,1771309841016,-500.0,0.0001348,2]
[405787932,1771309841026,-1151.53,0.00013484,2]
[405787934,1771309841035,-500.0,0.00013535,2]
[405787936,1771309841045,-500.0,0.00013589,2]
[405787938,1771309841055,-1151.53,0.00013639,2]
[405787940,1771309841065,-329.95129651,0.00013644,2]
[405787942,1771309841075,-13457.98,0.00013678,2]
[405787944,1771309841089,-5300.13656815,0.00013693,2]
[405787947,1771309841099,-1125.16,0.00013698,2]
[405787949,1771309841109,-1125.16,0.00013698,2]
[405787951,1771309841118,-1125.16,0.00013698,2]
[405787953,1771309841128,-1125.16,0.00013698,2]
[405787955,1771309841139,-1125.16,0.00013698,2]
[405787957,1771309841149,-1125.16,0.00013698,2]
[405787959,1771309841159,-1125.16,0.00013698,2]
[405787961,1771309841168,-1125.16,0.00013698,2]
[405787963,1771309841179,-1125.16,0.00013698,2]
[405787965,1771309841188,-1125.16,0.00013698,2]
[405787968,1771309841198,-1125.16,0.00013698,2]
[405787970,1771309841208,-1125.16,0.00013698,2]
[405787972,1771309841218,-1125.16,0.00013698,2]
[405787974,1771309841227,-1125.16,0.00013698,2]
[405787976,1771309841237,-456.05800986,0.00013698,2]
[405787978,1771309841247,-500.0,0.00013698,2]
[405787980,1771309841257,-500.0,0.00013698,2]
[405787982,1771309841266,-500.0,0.00013698,2]
[405787984,1771309841277,-500.0,0.00013698,2]
[405787986,1771309841291,-500.0,0.00013698,2]
[405787989,1771309841303,-500.0,0.00013698,2]
[405787991,1771309841313,-500.0,0.00013698,2]
[405787993,1771309841323,-500.0,0.00013698,2]
[405787995,1771309841333,-500.0,0.00013698,2]
[405787997,1771309841343,-500.0,0.00013698,2]
[405787999,1771309841353,-430.55674509,0.00013698,2]
[405788001,1771309841363,-915.21,0.00013698,2]
[405788003,1771309841377,-200.0,0.00013699,2]
[405788005,1771309841387,-183.74,0.00013699,2]
[405788007,1771309841397,-151.02878078,0.00013699,2]
[405788009,1771309841407,-846.3153877,0.00013712,2]
[405788011,1771309841417,-1151.53,0.00013794,2]
[405788014,1771309841428,-225.35,0.00013899,2]
[405788016,1771309841438,-4565.81,0.00013917,2]
[405788018,1771309841448,-1151.53,0.00013949,2]
[405788020,1771309841458,-458.0,0.00013985,2]
[405788022,1771309841467,-500.0,0.00013985,2]
[405788024,1771309841477,-872.0,0.00013985,2]
[405788026,1771309841487,-4242.0,0.00013985,2]
[405788028,1771309841497,-11808.51754568,0.00013996,2]
[405788030,1771309841509,-458.0,0.0001404,2]
[405788032,1771309841519,-500.0,0.0001404,2]
[405788034,1771309841528,-4242.0,0.0001404,2]
[405788036,1771309841538,-872.0,0.0001404,2]
[405788039,1771309841548,-448.0,0.00014051,2]
[405788041,1771309841559,-200.0,0.00014091,2]
[405788043,1771309841569,-458.0,0.00014095,2]
[405788044,1771309841578,-500.0,0.00014095,2]
[405788046,1771309841588,-4242.0,0.00014095,2]
[405788048,1771309841598,-872.0,0.00014095,2]
[405788049,1771309841608,-500.0,0.00014101,2]
[405788050,1771309841618,-429.0,0.00014101,2]
[405788051,1771309841628,-1151.53,0.00014104,2]
[405788052,1771309841637,-458.0,0.00014149,2]
[405788053,1771309841648,-500.0,0.00014149,2]
[405788054,1771309841657,-4242.0,0.00014149,2]
[405788055,1771309841667,-872.0,0.00014149,2]
[405788056,1771309841677,-458.0,0.00014204,2]
[405788057,1771309841689,-500.0,0.00014204,2]
[405788058,1771309841699,-4242.0,0.00014204,2]
[405788060,1771309841709,-872.0,0.00014204,2]
[405788062,1771309841718,-1151.53,0.00014259,2]
[405788065,1771309841727,-458.0,0.00014259,2]
[405788067,1771309841737,-475.49905426,0.00014259,2]
[405788069,1771309841747,-4242.0,0.00014259,2]
[405788071,1771309841758,-872.0,0.00014259,2]
[405788073,1771309841768,-458.0,0.00014314,2]
[405788075,1771309841778,-4242.0,0.00014314,2]
[405788077,1771309841788,-872.0,0.00014314,2]
[405788079,1771309841798,-3826.5506893,0.00014329,2]
[405788081,1771309841808,-458.0,0.00014369,2]
[405788083,1771309841818,-4242.0,0.00014369,2]
[405788084,1771309841827,-872.0,0.00014369,2]
[405788085,1771309841837,-7658.84032483,0.0001439,2]
[405788086,1771309841847,-1151.53,0.00014414,2]
[405788087,1771309841857,-458.0,0.00014423,2]
[405788088,1771309841867,-4242.0,0.00014423,2]
[405788089,1771309841876,-872.0,0.00014423,2]
[405788090,1771309841886,-458.0,0.00014478,2]
[405788091,1771309841895,-4242.0,0.00014478,2]
[405788092,1771309841905,-872.0,0.00014478,2]
[405788093,1771309841915,-7978.0,0.00014495,2]
[405788094,1771309841925,-458.0,0.00014533,2]
[405788095,1771309841934,-4242.0,0.00014533,2]
[405788096,1771309841944,-872.0,0.00014533,2]
[405788097,1771309841954,-166.66,0.0001454,2]
[405788098,1771309841964,-1151.53,0.00014569,2]
[405788099,1771309841974,-458.0,0.00014588,2]
[405788100,1771309841983,-4242.0,0.00014588,2]
[405788101,1771309841993,-872.0,0.00014588,2]
[405788102,1771309842003,-151.0,0.00014634,2]
[405788103,1771309842015,-151.0,0.00014634,2]
[405788104,1771309842026,-151.0,0.00014634,2]
[405788105,1771309842036,-458.0,0.00014643,2]
[405788106,1771309842046,-4242.0,0.00014643,2]
[405788107,1771309842056,-872.0,0.00014643,2]
[405788108,1771309842066,-458.0,0.00014697,2]
[405788109,1771309842076,-4242.0,0.00014697,2]
[405788110,1771309842088,-872.0,0.00014697,2]
[405788111,1771309842098,-1151.53,0.00014724,2]
[405788112,1771309842107,-458.0,0.00014752,2]
[405788113,1771309842117,-4242.0,0.00014752,2]
[405788114,1771309842127,-872.0,0.00014752,2]
[405788115,1771309842137,-458.0,0.00014807,2]
[405788116,1771309842146,-4242.0,0.00014807,2]
[405788117,1771309842157,-872.0,0.00014807,2]
[405788118,1771309842168,-255.16,0.00014818,2]
[405788119,1771309842177,-166.66,0.00014847,2]
[405788120,1771309842188,-458.0,0.00014862,2]
[405788121,1771309842199,-4242.0,0.00014862,2]
[405788122,1771309842209,-872.0,0.00014862,2]
[405788123,1771309842219,-458.0,0.00014917,2]
[405788124,1771309842229,-4242.0,0.00014917,2]
[405788125,1771309842240,-872.0,0.00014917,2]
[405788126,1771309842250,-18383.89,0.00014971,2]
[405788127,1771309842262,-458.0,0.00014971,2]
[405788128,1771309842272,-872.0,0.00014971,2]
[405788129,1771309842282,-4242.0,0.00014971,2]
[405788130,1771309842294,-11808.51754568,0.00014981,2]
[405788131,1771309842306,-250.0,0.00015,2]
[405788132,1771309842316,-2055.50045313,0.00015,2]
[405788133,1771309842327,-8002.23365242,0.00015,2]
[405788134,1771309842337,-418.83903334,0.00015,2]
[405788135,1771309842347,-458.0,0.00015026,2]
[405788136,1771309842358,-872.0,0.00015026,2]
[405788137,1771309842369,-4242.0,0.00015026,2]
[405788138,1771309842379,-458.0,0.00015081,2]
[405788139,1771309842389,-872.0,0.00015081,2]
[405788140,1771309842399,-4242.0,0.00015081,2]
[405788141,1771309842409,-5300.13656815,0.00015095,2]
[405788142,1771309842419,-458.0,0.00015136,2]
[405788143,1771309842430,-872.0,0.00015136,2]
[405788144,1771309842440,-4242.0,0.00015136,2]
[405788145,1771309842450,-166.66,0.00015153,2]
[405788146,1771309842460,-225.35,0.00015163,2]
[405788147,1771309842470,-458.0,0.0001519,2]
[405788148,1771309842480,-872.0,0.0001519,2]
[405788149,1771309842490,-4242.0,0.0001519,2]
[405788150,1771309842499,-160.0,0.00015209,2]
[405788151,1771309842510,-173.57638878,0.00015209,2]
[405788152,1771309842521,-3826.5506893,0.00015222,2]
[405788153,1771309842531,-478.26030593,0.00015245,2]
[405788154,1771309842540,-4242.729734,0.00015245,2]
[405788155,1771309842550,-887.15179644,0.00015245,2]
[405788160,1771309842560,-1517.64,0.000153,2]
[405788161,1771309842827,-509.61038486,0.000154,2]
[405788162,1771309842838,-166.66,0.00015459,2]
[405788163,1771309842848,-578.20924308,0.00015499,2]
[405788164,1771309842858,-151.0,0.00015499,2]
[405788165,1771309842867,-209.40437684,0.00015499,2]
[405788166,1771309842877,-1421.82630279,0.00015499,2]
[405788167,1771309842887,-250.0,0.00015499,2]
[405788168,1771309842897,-250.0,0.00015499,2]
[405788169,1771309842907,-160.0,0.00015499,2]
[405788170,1771309842917,-253.83621088,0.00015499,2]
[405788171,1771309842926,-162.380719,0.00015499,2]
[405788172,1771309842935,-3000.0,0.00015499,2]
[405788173,1771309842945,-151.12957794,0.00015499,2]
[405788174,1771309842955,-721.12765535,0.00015499,2]
[405788175,1771309842965,-3000.0,0.00015499,2]
[405788176,1771309842974,-3000.0,0.00015499,2]
[405788177,1771309842984,-3000.0,0.00015499,2]
[405788178,1771309842994,-250.0,0.00015499,2]
[405788179,1771309843004,-1000.0,0.00015499,2]
[405788180,1771309843014,-3000.0,0.00015499,2]
[405788181,1771309843024,-250.0,0.00015499,2]
[405788182,1771309843033,-1000.0,0.00015499,2]
[405788183,1771309843043,-3000.0,0.00015499,2]
[405788184,1771309843052,-250.0,0.00015499,2]
[405788185,1771309843062,-526.36214318,0.00015499,2]
[405788186,1771309843072,-3000.0,0.00015499,2]
[405788187,1771309843081,-250.0,0.00015499,2]
[405788189,1771309843091,-250.0,0.00015499,2]
[405788191,1771309843101,-3099.28707761,0.00015499,2]
[405788193,1771309843111,-250.0,0.00015499,2]
[405788194,1771309843120,-250.0,0.00015499,2]
[405788195,1771309843129,-250.0,0.00015499,2]
[405788196,1771309843139,-250.0,0.00015499,2]
[405788197,1771309843149,-299.40346672,0.00015499,2]
[405788198,1771309843159,-250.0,0.00015499,2]
[405788199,1771309843168,-250.0,0.00015499,2]
[405788200,1771309843178,-250.0,0.00015499,2]
[405788201,1771309843188,-250.0,0.00015499,2]
[405788202,1771309843198,-250.0,0.00015499,2]
[405788203,1771309843208,-250.0,0.00015499,2]
[405788204,1771309843217,-177.7218892,0.00015499,2]
[405788205,1771309843228,-250.0,0.00015499,2]
[405788206,1771309843238,-250.0,0.00015499,2]
[405788207,1771309843248,-250.0,0.00015499,2]
[405788208,1771309843263,-250.0,0.00015499,2]
[405788209,1771309843272,-250.0,0.00015499,2]
[405788210,1771309843283,-250.0,0.00015499,2]
[405788211,1771309843297,-3000.0,0.00015499,2]
[405788212,1771309843308,-250.0,0.00015499,2]
[405788213,1771309843318,-250.0,0.00015499,2]
[405788214,1771309843330,-3000.0,0.00015499,2]
[405788215,1771309843339,-250.0,0.00015499,2]
[405788216,1771309843350,-250.0,0.00015499,2]
[405788217,1771309843361,-250.0,0.00015499,2]
[405788218,1771309843371,-1070.81608438,0.00015499,2]
[405788219,1771309843381,-250.0,0.00015499,2]
[405788220,1771309843391,-250.0,0.00015499,2]
[405788221,1771309843402,-250.0,0.00015499,2]
[405788222,1771309843412,-254.77802588,0.00015499,2]
[405788223,1771309843422,-250.0,0.00015499,2]
[405788224,1771309843432,-302.70619241,0.00015499,2]
[405788225,1771309843441,-250.0,0.00015499,2]
[405788226,1771309843451,-250.0,0.00015499,2]
[405788227,1771309843461,-250.0,0.00015499,2]
[405788228,1771309843472,-250.0,0.00015499,2]
[405788229,1771309843482,-250.0,0.00015499,2]
[405788230,1771309843492,-151.0,0.00015499,2]
[405788231,1771309843502,-250.0,0.00015499,2]
[405788232,1771309843513,-151.0,0.00015499,2]
[405788233,1771309843523,-250.0,0.00015499,2]
[405788234,1771309843533,-151.0,0.00015499,2]
[405788235,1771309843543,-250.0,0.00015499,2]
[405788236,1771309843552,-151.0,0.00015499,2]
[405788237,1771309843562,-250.0,0.00015499,2]
[405788238,1771309843571,-151.0,0.00015499,2]
[405788239,1771309843581,-200.0,0.00015499,2]
[405788240,1771309843590,-250.0,0.00015499,2]
[405788241,1771309843600,-151.0,0.00015499,2]
[405788242,1771309843610,-250.0,0.00015499,2]
[405788243,1771309843619,-151.0,0.00015499,2]
[405788244,1771309843629,-250.0,0.00015499,2]
[405788245,1771309843639,-261.90795033,0.00015499,2]
[405788246,1771309843649,-250.0,0.00015499,2]
[405788247,1771309843659,-279.55615727,0.00015499,2]
[405788248,1771309843669,-693.3919763,0.00015499,2]
[405788249,1771309843678,-500.0,0.00015499,2]
[405788250,1771309843688,-500.0,0.00015499,2]
[405788251,1771309843698,-586.96513288,0.00015499,2]
[405788252,1771309843708,-151.0,0.00015554,2]
[405788253,1771309843718,-719.04747942,0.00015554,2]
[405788254,1771309843728,-151.0,0.00015609,2]
[405788255,1771309843738,-745.65223616,0.00015609,2]
[405788256,1771309843748,-3240.0,0.00015655,2]
[405788257,1771309843759,-151.0,0.00015664,2]
[405788258,1771309843768,-773.2413689,0.00015664,2]
[405788259,1771309843778,-151.0,0.00015719,2]
[405788260,1771309843787,-801.85129955,0.00015719,2]
[405788261,1771309843797,-166.66,0.00015765,2]
[405788262,1771309843806,-151.0,0.00015774,2]
[405788263,1771309843815,-831.51979763,0.00015774,2]
[405788264,1771309843825,-2071.01,0.0001579,2]
[405788265,1771309843835,-2245.73805852,0.00015807,2]
[405788266,1771309843845,-151.0,0.00015829,2]
[405788267,1771309843854,-862.28603014,0.00015829,2]
[405788268,1771309843864,-500.0,0.00015863,2]
[405788269,1771309843873,-150.0,0.00015863,2]
[405788270,1771309843883,-500.0,0.00015863,2]
[405788271,1771309843892,-500.0,0.00015863,2]
[405788272,1771309843902,-150.0,0.00015863,2]
[405788273,1771309843911,-150.0,0.00015863,2]
[405788274,1771309843921,-150.0,0.00015863,2]
[405788275,1771309843930,-150.0,0.00015863,2]
[405788276,1771309843939,-500.0,0.00015863,2]
[405788277,1771309843949,-500.0,0.00015863,2]
[405788278,1771309843958,-151.0,0.00015884,2]
[405788279,1771309843967,-894.19061326,0.00015884,2]
[405788280,1771309843977,-500.0,0.00015918,2]
[405788281,1771309843987,-150.0,0.00015918,2]
[405788282,1771309843997,-500.0,0.00015918,2]
[405788283,1771309844007,-500.0,0.00015918,2]
[405788284,1771309844017,-244.28993987,0.00015918,2]
[405788285,1771309844027,-150.0,0.00015918,2]
[405788286,1771309844037,-150.0,0.00015918,2]
[405788287,1771309844046,-205.12968692,0.00015918,2]
[405788288,1771309844056,-500.0,0.00015918,2]
[405788289,1771309844066,-649.65624143,0.00015918,2]
[405788290,1771309844075,-151.0,0.00015939,2]
[405788291,1771309844085,-927.27566595,0.00015939,2]
[405788292,1771309844094,-5000.0,0.0001596,2]
[405788293,1771309844104,-11808.51754568,0.00015967,2]
[405788294,1771309844114,-500.0,0.00015973,2]
[405788295,1771309844124,-242.84628954,0.00015973,2]
[405788296,1771309844134,-500.0,0.00015973,2]
[405788297,1771309844143,-152.12850518,0.00015973,2]
[405788298,1771309844153,-150.0,0.00015973,2]
[405788299,1771309844163,-200.36674187,0.00015973,2]
[405788300,1771309844172,-500.0,0.00015973,2]
[405788301,1771309844182,-151.0,0.00015994,2]
[405788302,1771309844191,-961.58486559,0.00015994,2]
[405788303,1771309844200,-303.26122484,0.00016,2]
[405788304,1771309844210,-500.0,0.00016027,2]
[405788305,1771309844220,-500.0,0.00016027,2]
[405788306,1771309844229,-200.89245722,0.00016027,2]
[405788307,1771309844239,-500.0,0.00016027,2]
[405788308,1771309844249,-217.15233878,0.00016047,2]
[405788309,1771309844260,-200.0,0.00016047,2]
[405788310,1771309844270,-160.57318335,0.00016049,2]
[405788311,1771309844280,-151.0,0.00016049,2]
[405788312,1771309844291,-997.16350561,0.00016049,2]
[405788313,1771309844305,-166.66,0.00016071,2]
[405788314,1771309844315,-150.0,0.00016082,2]
[405788315,1771309844325,-2000.0,0.00016082,2]
[405788316,1771309844337,-500.0,0.00016082,2]
[405788317,1771309844347,-500.0,0.00016082,2]
[405788318,1771309844357,-500.0,0.00016082,2]
[405788319,1771309844368,-151.0,0.00016104,2]
[405788320,1771309844377,-3826.5506893,0.00016114,2]
[405788321,1771309844387,-150.37957529,0.00016137,2]
[405788322,1771309844397,-500.0,0.00016137,2]
[405788323,1771309844407,-500.0,0.00016137,2]
[405788324,1771309844417,-500.0,0.00016137,2]
[405788325,1771309844427,-151.0,0.00016159,2]
[405788326,1771309844437,-150.0,0.00016174,2]
[405788327,1771309844447,-500.0,0.00016192,2]
[405788328,1771309844458,-630.25617345,0.00016192,2]
[405788329,1771309844468,-382.17209928,0.00016192,2]
[405788330,1771309844478,-343577.21433549,0.000162,5]
[405788331,1771309844488,-151.0,0.00016214,2]
[405788332,1771309844498,-500.0,0.00016247,2]
[405788333,1771309844508,-267.05598539,0.00016269,2]
[405788334,1771309844518,-500.0,0.00016301,2]
[405788335,1771309844528,-200.0,0.0001634,2]
[405788336,1771309844537,-500.0,0.00016356,2]
[405788337,1771309844548,-500.0,0.00016356,2]
[405788338,1771309844559,-500.0,0.00016356,2]
[405788339,1771309844570,-500.0,0.00016411,2]
[405788340,1771309844579,-225.35,0.00016427,2]
[405788341,1771309844590,-163.51122534,0.00016466,2]
[405788342,1771309844599,-2228.04,0.00016472,2]
[405788343,1771309844609,-5300.13656815,0.00016498,2]
[405788344,1771309844619,-9917.64356668,0.00016499,2]
[405788345,1771309844628,-550.98049433,0.0001653,7]
[405788346,1771309844637,-297.18074641,0.00016595,2]
[405788347,1771309844647,-159.42,0.00016712,2]
[405788348,1771309844656,-160.32510575,0.00016868,2]
[405788349,1771309844665,-168.3888056,0.00016868,2]
[405788350,1771309844675,-11808.51754568,0.00016952,2]
[405788351,1771309844685,-300.0,0.00017,2]
[405788352,1771309844695,-722096.52522804,0.00017,2]
[405788353,1771309844704,-315.90732778,0.00017052,2]
[405788354,1771309844714,-1443.217419,0.00017101,7]
[405788355,1771309844724,-502.0,0.000173,2]
[405788356,1771309844734,-350.0,0.00017324,2]
[405788357,1771309844744,-2000.0,0.00017452,7]
[405788358,1771309844753,-173.57638878,0.000175,7]
[405788359,1771309844763,-350.0,0.0001755,2]
[405788360,1771309844773,-350.0,0.00017553,2]
[405788361,1771309844782,-350.0,0.00017563,2]
[405788362,1771309844792,-5016.38407619,0.0001764,2]
[405788363,1771309844801,-225.35,0.0001769,2]
[405788364,1771309844811,-784.32813885,0.000177,2]
[405788365,1771309844821,-403.0,0.000177,5]
[405788366,1771309844830,-350.0,0.00017718,2]
[405788367,1771309844840,-500.0,0.00017726,7]
[405788368,1771309844850,-827.98134311,0.0001779,2]
[405788369,1771309844859,-349.69131006,0.00017799,2]
[405788370,1771309844869,-1125.16,0.00017799,2]
[405788371,1771309844879,-1125.16,0.00017799,2]
[405788372,1771309844889,-1125.16,0.00017799,2]
[405788373,1771309844898,-1125.16,0.00017799,2]
[405788374,1771309844907,-1125.16,0.00017799,2]
[405788375,1771309844917,-500.0,0.00017799,2]
[405788376,1771309844926,-500.0,0.00017799,2]
[405788377,1771309844936,-500.0,0.00017799,2]
[405788378,1771309844945,-500.0,0.00017799,2]
[405788379,1771309844954,-511.5660924,0.00017799,2]
[405788380,1771309844964,-500.0,0.00017799,2]
[405788381,1771309844974,-529.40507312,0.00017799,2]
[405788382,1771309844984,-1242242.5097,0.000178,2]
[405788383,1771309844994,-444.64,0.00017808,2]
[405788384,1771309845003,-250.0,0.00017808,20]
[405788385,1771309845013,-250.0,0.00017808,20]
[405788386,1771309845024,-250.0,0.00017808,20]
[405788387,1771309845034,-250.0,0.00017808,20]
[405788388,1771309845044,-250.0,0.00017808,20]
[405788389,1771309845054,-250.0,0.00017808,20]
[405788390,1771309845063,-250.0,0.00017808,20]
[405788391,1771309845073,-250.0,0.00017808,20]
[405788392,1771309845082,-250.0,0.00017808,20]
[405788393,1771309845092,-250.0,0.00017808,20]
[405788394,1771309845102,-250.0,0.00017808,20]
[405788395,1771309845111,-250.0,0.00017808,20]
[405788396,1771309845121,-250.0,0.00017808,20]
[405788397,1771309845131,-250.0,0.00017808,20]
[405788398,1771309845140,-250.0,0.00017808,20]
[405788399,1771309845149,-211.316222,0.00017808,20]
[405788400,1771309845159,-800.0,0.00017808,2]
[405788401,1771309845255,-260.09005405,0.0001782,2]
[405788402,1771309845265,-350.0,0.00017855,2]
[405788403,1771309845275,-200.0,0.00017856,2]
[405788404,1771309845285,-1004.12697823,0.0001786,2]
[405788405,1771309845297,-293.87,0.00017888,2]
[405788406,1771309845307,-32850.4601,0.000179,2]
[405788407,1771309845317,-1000.0,0.000179,2]
[405788408,1771309845326,-2555.4951848,0.000179,5]
[405788409,1771309845337,-5300.13656815,0.000179,2]
[405788410,1771309845347,-151.47260236,0.000179,2]
[405788411,1771309845358,-3044.08328567,0.000179,2]
[405788412,1771309845369,-1125.16,0.00017998,2]
[405788413,1771309845378,-1125.16,0.00017998,2]
[405788414,1771309845388,-1125.16,0.00017998,2]
[405788415,1771309845398,-1125.16,0.00017998,2]
[405788416,1771309845407,-1125.29508189,0.00017998,2]
[405788417,1771309845417,-9704.9683775,0.00017999,2]
[405788418,1771309845427,-143705.8053719,0.00017999,2]
[405788419,1771309845436,-235.55627713,0.00017999,2]
[405788420,1771309845445,-300.0,0.00017999,2]
[405788421,1771309845455,-666.0,0.00017999,2]
[405788422,1771309845465,-300.0,0.00017999,2]
[405788423,1771309845475,-300.0,0.00017999,2]
[405788424,1771309845484,-23598.10797836,0.00017999,2]
[405788426,1771309845494,-3672084.43793337,0.00018,2]
[405788428,1771309845504,-772.26,0.00018,7]
[405788429,1771309845513,-150.0,0.00018,2]
[405788430,1771309845523,-1075.70019208,0.00018,2]
[405788431,1771309845533,-150.0,0.00018,2]
[405788432,1771309845543,-3080.85541333,0.00018,2]
[405788433,1771309845552,-205.83646081,0.00018,2]
[405788434,1771309845562,-200.0,0.00018,2]
[405788435,1771309845571,-3427971.081989,0.00018,2]
[405788444,1771309846088,-476.33151153,0.00018,2]
[405788445,1771309846100,-1386.35636678,0.00018,2]
[405788446,1771309846122,-468.80031656,0.00010986,2]
[405788447,1771309846132,-5372.3839609,0.00018,2]
[405788448,1771309846528,-154.86539372,9.726e-05,2]
[405788449,1771309846539,-500.0,9.726e-05,2]
[405788450,1771309846548,-500.0,9.726e-05,2]
[405788451,1771309846558,-500.0,9.726e-05,2]
[405788452,1771309846567,-500.0,9.781e-05,2]
[405788453,1771309846577,-500.0,9.781e-05,2]
[405788454,1771309846586,-500.0,9.781e-05,2]
[405788455,1771309846595,-500.0,9.836e-05,2]
[405788456,1771309846606,-500.0,9.836e-05,2]
[405788457,1771309846615,-500.0,9.836e-05,2]
[405788458,1771309846625,-500.0,9.89e-05,2]
[405788459,1771309846634,-187.36614029,9.89e-05,2]
[405788460,1771309846643,-500.0,9.89e-05,2]
[405788461,1771309846653,-500.0,9.945e-05,2]
[405788462,1771309846663,-500.0,0.0001,2]
[405788463,1771309846672,-500.0,0.00010055,2]
[405788464,1771309846682,-6537.84268,0.00010261,2]